lending/lending_fUSD_20250719
["ID","MTS","AMOUNT","RATE_DAILY","PERIOD"]
[373235535,1752919858723,-560.58377974,0.00019397,2]
[373235536,1752919858733,-480.0,0.00019397,2]
[373235537,1752919858743,-480.0,0.00019397,2]
[373235538,1752919858753,-480.0,0.00019397,2]
[373235539,1752919858763,-480.0,0.00019397,2]
[373235540,1752919858773,-480.0,0.00019397,2]
[373235541,1752919858782,-892.94,0.00019397,2]
[373235542,1752919858792,-480.0,0.00019397,2]
[373235543,1752919858802,-1122.99,0.00019397,2]
[373235544,1752919858811,-781.22,0.00019397,2]
[373235545,1752919858821,-480.0,0.00019397,2]
[373235546,1752919858834,-480.0,0.00019397,2]
[373235547,1752919858843,-480.0,0.00019397,2]
[373235548,1752919858853,-1680.0,0.00019397,2]
[373235549,1752919858922,-480.0,0.00019397,2]
[373235550,1752919858932,-699.81,0.00019397,2]
[373235551,1752919858943,-480.0,0.00019397,2]
[373235552,1752919858953,-2398.3,0.00019397,2]
[373235553,1752919858962,-480.0,0.00019397,2]
[373235554,1752919858972,-480.0,0.00019397,2]
[373235555,1752919858982,-480.0,0.00019397,2]
[373235556,1752919858991,-480.0,0.00019397,2]
[373235557,1752919859001,-480.0,0.00019397,2]
[373235558,1752919859010,-480.0,0.00019397,2]
[373235559,1752919859020,-584.5897957,0.00019397,2]
[373235560,1752919859029,-1143.42,0.00019397,2]
[373235561,1752919859039,-480.0,0.00019397,2]
[373235562,1752919859048,-480.0,0.00019397,2]
[373235563,1752919859058,-480.0,0.00019397,2]
[373235564,1752919859067,-480.0,0.00019397,2]
[373235565,1752919859077,-480.0,0.00019397,2]
[373235566,1752919859086,-480.0,0.00019397,2]
[373235567,1752919859096,-852.18,0.00019397,2]
[373235568,1752919859105,-480.0,0.00019397,2]
[373235569,1752919859115,-480.0,0.00019397,2]
[373235570,1752919859124,-480.0,0.00019397,2]
[373235571,1752919859134,-465.361902,0.00019397,2]
[373235572,1752919859144,-480.0,0.00019397,2]
[373235573,1752919859153,-539.87,0.00019397,2]
[373235574,1752919859163,-1158.1,0.00019397,2]
[373235575,1752919859172,-480.0,0.00019397,2]
[373235576,1752919859182,-480.0,0.00019397,2]
[373235577,1752919859191,-502.23,0.00019397,2]
[373235578,1752919859201,-480.0,0.00019397,2]
[373235579,1752919859211,-480.0,0.00019397,2]
[373235580,1752919859220,-480.0,0.00019397,2]
[373235581,1752919859230,-480.0,0.00019397,2]
[373235582,1752919859241,-545.06,0.00019397,2]
[373235583,1752919859250,-2905.24,0.00019397,2]
[373235584,1752919859260,-420.0,0.00019397,2]
[373235585,1752919859269,-480.0,0.00019397,2]
[373235586,1752919859279,-1130.47,0.00019397,2]
[373235587,1752919859288,-1538.89,0.00019397,2]
[373235588,1752919859297,-480.0,0.00019397,2]
[373235589,1752919859306,-480.0,0.00019397,2]
[373235590,1752919859316,-500.0,0.00019413,2]
[373235591,1752919859325,-150.0,0.00019413,2]
[373235592,1752919859335,-150.0,0.00019413,2]
[373235593,1752919859344,-150.0,0.00019413,2]
[373235594,1752919859354,-500.0,0.00019413,2]
[373235595,1752919859363,-150.0,0.00019413,2]
[373235596,1752919859372,-500.0,0.00019413,2]
[373235597,1752919859383,-500.0,0.00019413,2]
[373235598,1752919859392,-250.0,0.00019413,2]
[373235599,1752919859402,-250.0,0.00019413,2]
[373235600,1752919859412,-2525.0,0.00019413,2]
[373235601,1752919859421,-500.0,0.00019413,2]
[373235602,1752919859431,-150.0,0.00019413,2]
[373235603,1752919859441,-870.0,0.00019413,2]
[373235604,1752919859451,-150.0,0.00019413,2]
[373235605,1752919859461,-180.0,0.00019413,2]
[373235606,1752919859470,-215.09622816,0.00019413,2]
[373235607,1752919859480,-500.0,0.00019413,2]
[373235608,1752919859489,-150.0,0.00019413,2]
[373235609,1752919859499,-150.0,0.00019413,2]
[373235610,1752919859509,-616.0,0.00019413,2]
[373235611,1752919859519,-616.0,0.00019413,2]
[373235612,1752919859528,-150.0,0.00019414,2]
[373235613,1752919859538,-150.0,0.00019414,2]
[373235614,1752919859547,-200.0,0.00019414,2]
[373235615,1752919859555,-150.0,0.00019414,2]
[373235616,1752919859564,-150.0,0.00019414,2]
[373235617,1752919859574,-2870.94742798,0.00019417,2]
[373235618,1752919859583,-1178.16015,0.0001942,2]
[373235619,1752919859593,-347.0,0.00019422,2]
[373235620,1752919859603,-9773.68671811,0.00019429,2]
[373235621,1752919859612,-203.0,0.0001943,2]
[373235622,1752919859621,-1435.47371404,0.0001943,2]
[373235623,1752919859631,-2870.94742798,0.0001943,2]
[373235624,1752919859640,-200.0,0.00019432,2]
[373235625,1752919859649,-59711.39934955,0.00019433,2]
[373235626,1752919859659,-476.80070012,0.00019434,2]
[373235627,1752919859668,-210.82967408,0.00019434,2]
[373235628,1752919859677,-839.16344753,0.00019434,2]
[373235629,1752919859687,-1178.16015,0.00019442,2]
[373235630,1752919859696,-230.87165002,0.00019443,2]
[373235631,1752919859706,-3168.047,0.00019444,2]
[373235632,1752919859715,-21361.0,0.00019444,2]
[373235633,1752919859725,-889.0,0.00019444,2]
[373235634,1752919859734,-230.87165002,0.00019457,2]
[373235635,1752919859744,-200.0,0.00019487,2]
[373235636,1752919859754,-1435.47371404,0.00019489,2]
[373235637,1752919859763,-200.0,0.00019491,2]
[373235638,1752919859772,-1435.47371404,0.00019494,2]
[373235639,1752919859782,-2870.94742798,0.00019495,2]
[373235640,1752919859791,-480.0,0.00019506,2]
[373235641,1752919859800,-151.0,0.00019506,2]
[373235642,1752919859810,-151.0,0.00019506,2]
[373235643,1752919859820,-480.0,0.00019506,2]
[373235644,1752919859832,-406.32909577,0.00019506,2]
[373235645,1752919859843,-480.0,0.00019506,2]
[373235646,1752919859853,-426.17,0.00019506,2]
[373235647,1752919859864,-480.0,0.00019506,2]
[373235648,1752919859875,-480.0,0.00019506,2]
[373235649,1752919859885,-298.374402,0.00019506,2]
[373235650,1752919859894,-298.374402,0.00019506,2]
[373235651,1752919859905,-278.691009,0.00019506,2]
[373235652,1752919859914,-516.76,0.00019506,2]
[373235653,1752919859924,-480.0,0.00019506,2]
[373235654,1752919859934,-217.64,0.00019506,2]
[373235655,1752919859944,-480.0,0.00019506,2]
[373235656,1752919859953,-474.78,0.00019506,2]
[373235657,1752919859963,-480.0,0.00019506,2]
[373235658,1752919859974,-480.0,0.00019506,2]
[373235659,1752919859983,-203.2,0.00019506,2]
[373235660,1752919859993,-154.05,0.00019506,2]
[373235661,1752919860002,-480.0,0.00019506,2]
[373235662,1752919860012,-480.0,0.00019506,2]
[373235663,1752919860021,-480.0,0.00019506,2]
[373235664,1752919860031,-480.0,0.00019506,2]
[373235665,1752919860040,-480.0,0.00019506,2]
[373235666,1752919860050,-480.0,0.00019506,2]
[373235667,1752919860060,-356.4,0.00019506,2]
[373235668,1752919860070,-421.75226574,0.00019506,2]
[373235669,1752919860079,-480.0,0.00019506,2]
[373235670,1752919860089,-549.13,0.00019506,2]
[373235671,1752919860100,-336.19101646,0.00019506,2]
[373235672,1752919860109,-231.27979926,0.00019506,2]
[373235673,1752919860119,-480.0,0.00019506,2]
[373235674,1752919860128,-164.93,0.00019506,2]
[373235675,1752919860137,-574.18,0.00019506,2]
[373235676,1752919860147,-480.0,0.00019506,2]
[373235677,1752919860157,-411.79790369,0.00019506,2]
[373235678,1752919860167,-438.4789478,0.00019506,2]
[373235679,1752919860176,-408.99457482,0.00019506,2]
[373235680,1752919860186,-480.0,0.00019506,2]
[373235681,1752919860195,-480.0,0.00019506,2]
[373235682,1752919860205,-625.51,0.00019506,2]
[373235683,1752919860215,-480.0,0.00019506,2]
[373235684,1752919860224,-283.4,0.00019506,2]
[373235685,1752919860234,-480.0,0.00019506,2]
[373235686,1752919860244,-456.16,0.00019506,2]
[373235687,1752919860254,-400.0,0.00019506,2]
[373235688,1752919860263,-480.0,0.00019506,2]
[373235689,1752919860273,-480.0,0.00019506,2]
[373235690,1752919860283,-480.0,0.00019506,2]
[373235691,1752919860292,-409.79650554,0.00019506,2]
[373235692,1752919860302,-172.88,0.00019506,2]
[373235693,1752919860311,-480.0,0.00019506,2]
[373235694,1752919860321,-177.60322695,0.00019506,2]
[373235695,1752919860330,-421.73030217,0.00019506,2]
[373235696,1752919860340,-440.55,0.00019506,2]
[373235697,1752919860349,-414.79096465,0.00019506,2]
[373235698,1752919860359,-426.82578776,0.00019506,2]
[373235699,1752919860368,-480.0,0.00019506,2]
[373235700,1752919860378,-480.0,0.00019506,2]
[373235701,1752919860387,-518.65,0.00019506,2]
[373235702,1752919860396,-3225.72,0.00019506,2]
[373235703,1752919860406,-218.85,0.00019506,2]
[373235704,1752919860416,-480.0,0.00019506,2]
[373235705,1752919860425,-929.65,0.00019506,2]
[373235706,1752919860435,-546.84,0.00019506,2]
[373235707,1752919860445,-480.0,0.00019506,2]
[373235708,1752919860455,-480.0,0.00019506,2]
[373235709,1752919860464,-3351.16,0.00019506,2]
[373235710,1752919860474,-3462.2,0.00019506,2]
[373235711,1752919860483,-480.0,0.00019506,2]
[373235712,1752919860493,-480.0,0.00019506,2]
[373235713,1752919860502,-3220.57,0.00019506,2]
[373235714,1752919860511,-480.0,0.00019506,2]
[373235715,1752919860521,-480.0,0.00019506,2]
[373235716,1752919860530,-877.62,0.00019506,2]
[373235717,1752919860540,-480.0,0.00019506,2]
[373235718,1752919860549,-480.0,0.00019506,2]
[373235719,1752919860559,-480.0,0.00019506,2]
[373235720,1752919860568,-480.0,0.00019506,2]
[373235721,1752919860577,-422.66,0.00019506,2]
[373235722,1752919860588,-522.59,0.00019506,2]
[373235723,1752919860597,-611.8,0.00019506,2]
[373235724,1752919860606,-221.29173886,0.00019506,2]
[373235725,1752919860616,-992.53,0.00019506,2]
[373235726,1752919860625,-685.01,0.00019506,2]
[373235727,1752919860634,-1637.825904,0.00019506,2]
[373235728,1752919860644,-588.9,0.00019506,2]
[373235729,1752919860653,-1571.285944,0.00019506,2]
[373235730,1752919860662,-480.0,0.00019506,2]
[373235731,1752919860672,-2233.87,0.00019506,2]
[373235732,1752919860681,-851.61,0.00019506,2]
[373235733,1752919860690,-718.81,0.00019506,2]
[373235734,1752919860699,-480.0,0.00019506,2]
[373235735,1752919860708,-480.0,0.00019506,2]
[373235736,1752919860717,-1358.36,0.00019506,2]
[373235737,1752919860728,-480.0,0.00019506,2]
[373235738,1752919860737,-1477.64,0.00019506,2]
[373235739,1752919860748,-480.0,0.00019506,2]
[373235740,1752919860757,-646.65,0.00019506,2]
[373235741,1752919860766,-480.0,0.00019506,2]
[373235742,1752919860775,-482.5,0.00019506,2]
[373235743,1752919860785,-480.0,0.00019506,2]
[373235744,1752919860794,-480.0,0.00019506,2]
[373235745,1752919860804,-1030.46,0.00019506,2]
[373235746,1752919860814,-243.58,0.00019506,2]
[373235747,1752919860823,-480.0,0.00019506,2]
[373235748,1752919860835,-480.0,0.00019506,2]
[373235749,1752919860844,-480.0,0.00019506,2]
[373235750,1752919860854,-480.0,0.00019506,2]
[373235751,1752919860863,-1186.415593,0.00019506,2]
[373235752,1752919860873,-602.24,0.00019506,2]
[373235753,1752919860882,-480.0,0.00019506,2]
[373235754,1752919860891,-480.0,0.00019506,2]
[373235755,1752919860900,-480.0,0.00019506,2]
[373235756,1752919860910,-480.0,0.00019506,2]
[373235757,1752919860919,-480.0,0.00019506,2]
[373235758,1752919860930,-480.0,0.00019506,2]
[373235759,1752919860939,-1659.56,0.00019506,2]
[373235760,1752919860949,-658.15,0.00019506,2]
[373235761,1752919860958,-480.0,0.00019506,2]
[373235762,1752919860967,-480.0,0.00019506,2]
[373235763,1752919860976,-480.0,0.00019506,2]
[373235764,1752919860986,-480.0,0.00019506,2]
[373235765,1752919860997,-676.84,0.00019506,2]
[373235766,1752919861007,-480.0,0.00019506,2]
[373235767,1752919861016,-480.0,0.00019506,2]
[373235768,1752919861026,-480.0,0.00019506,2]
[373235769,1752919861036,-1947.23,0.00019506,2]
[373235770,1752919861045,-480.0,0.00019506,2]
[373235771,1752919861054,-837.04,0.00019506,2]
[373235772,1752919861064,-1120.43,0.00019506,2]
[373235773,1752919861073,-230.18933474,0.00019506,2]
[373235774,1752919861083,-480.0,0.00019506,2]
[373235775,1752919861093,-1479.44,0.00019506,2]
[373235776,1752919861102,-480.0,0.00019506,2]
[373235777,1752919861111,-480.0,0.00019506,2]
[373235778,1752919861120,-1240.19,0.00019506,2]
[373235779,1752919861130,-1104.98,0.00019506,2]
[373235780,1752919861140,-480.0,0.00019506,2]
[373235781,1752919861149,-1213.06,0.00019506,2]
[373235782,1752919861159,-1325.85,0.00019506,2]
[373235783,1752919861168,-480.0,0.00019506,2]
[373235784,1752919861178,-480.0,0.00019506,2]
[373235785,1752919861187,-480.0,0.00019506,2]
[373235786,1752919861197,-480.0,0.00019506,2]
[373235787,1752919861207,-495.17,0.00019506,2]
[373235788,1752919861217,-480.0,0.00019506,2]
[373235789,1752919861227,-602.67,0.00019506,2]
[373235790,1752919861237,-480.0,0.00019506,2]
[373235791,1752919861248,-1656.17,0.00019506,2]
[373235792,1752919861258,-480.0,0.00019506,2]
[373235793,1752919861267,-480.0,0.00019506,2]
[373235794,1752919861277,-324.83,0.00019506,2]
[373235795,1752919861287,-480.0,0.00019506,2]
[373235796,1752919861296,-2682.58,0.00019506,2]
[373235797,1752919861306,-480.0,0.00019506,2]
[373235798,1752919861316,-359.97386212,0.00019506,2]
[373235799,1752919861325,-2820.87,0.00019506,2]
[373235800,1752919861336,-955.39,0.00019506,2]
[373235801,1752919861346,-480.0,0.00019506,2]
[373235802,1752919861355,-480.0,0.00019506,2]
[373235803,1752919861365,-480.0,0.00019506,2]
[373235804,1752919861375,-824.58,0.00019506,2]
[373235805,1752919861385,-480.0,0.00019506,2]
[373235806,1752919861394,-480.0,0.00019506,2]
[373235807,1752919861403,-480.0,0.00019506,2]
[373235808,1752919861413,-480.0,0.00019506,2]
[373235809,1752919861422,-1507.25,0.00019506,2]
[373235810,1752919861432,-1820.5,0.00019506,2]
[373235811,1752919861442,-1304.87,0.00019506,2]
[373235812,1752919861451,-1009.35,0.00019506,2]
[373235813,1752919861460,-480.0,0.00019506,2]
[373235814,1752919861470,-546.15902582,0.00019506,2]
[373235815,1752919861480,-1085.77,0.00019506,2]
[373235816,1752919861491,-480.0,0.00019506,2]
[373235817,1752919861499,-677.53,0.00019506,2]
[373235818,1752919861509,-621.85,0.00019506,2]
[373235819,1752919861518,-506.06,0.00019506,2]
[373235820,1752919861528,-480.0,0.00019506,2]
[373235821,1752919861538,-578.45,0.00019506,2]
[373235822,1752919861547,-480.0,0.00019506,2]
[373235823,1752919861557,-1106.32,0.00019506,2]
[373235824,1752919861566,-400.0,0.00019506,2]
[373235825,1752919861575,-1288.84,0.00019506,2]
[373235826,1752919861585,-505.94,0.00019506,2]
[373235827,1752919861594,-480.0,0.00019506,2]
[373235828,1752919861604,-480.0,0.00019506,2]
[373235829,1752919861613,-480.0,0.00019506,2]
[373235830,1752919861623,-518.09,0.00019506,2]
[373235831,1752919861632,-1483.96,0.00019506,2]
[373235832,1752919861642,-480.0,0.00019506,2]
[373235833,1752919861651,-480.0,0.00019506,2]
[373235834,1752919861661,-480.0,0.00019506,2]
[373235835,1752919861670,-480.0,0.00019506,2]
[373235836,1752919861679,-480.0,0.00019506,2]
[373235837,1752919861688,-151.0,0.00019506,2]
[373235838,1752919861697,-480.0,0.00019506,2]
[373235839,1752919861706,-892.94,0.00019506,2]
[373235840,1752919861716,-480.0,0.00019506,2]
[373235841,1752919861725,-1122.99,0.00019506,2]
[373235842,1752919861734,-781.22,0.00019506,2]
[373235843,1752919861744,-480.0,0.00019506,2]
[373235844,1752919861754,-480.0,0.00019506,2]
[373235845,1752919861763,-480.0,0.00019506,2]
[373235846,1752919861772,-480.0,0.00019506,2]
[373235847,1752919861781,-699.81,0.00019506,2]
[373235848,1752919861791,-480.0,0.00019506,2]
[373235849,1752919861800,-2398.3,0.00019506,2]
[373235850,1752919861810,-480.0,0.00019506,2]
[373235851,1752919861819,-480.0,0.00019506,2]
[373235852,1752919861830,-480.0,0.00019506,2]
[373235853,1752919861842,-480.0,0.00019506,2]
[373235854,1752919861851,-480.0,0.00019506,2]
[373235855,1752919861861,-480.0,0.00019506,2]
[373235856,1752919861870,-1143.42,0.00019506,2]
[373235857,1752919861880,-480.0,0.00019506,2]
[373235858,1752919861890,-344.54,0.00019506,2]
[373235859,1752919861899,-480.0,0.00019506,2]
[373235860,1752919861910,-480.0,0.00019506,2]
[373235861,1752919861920,-480.0,0.00019506,2]
[373235862,1752919861930,-480.0,0.00019506,2]
[373235863,1752919861939,-852.18,0.00019506,2]
[373235864,1752919861949,-480.0,0.00019506,2]
[373235865,1752919861959,-480.0,0.00019506,2]
[373235866,1752919861974,-446.02,0.00019506,2]
[373235867,1752919861984,-539.76739981,0.00019506,2]
[373235868,1752919861995,-539.87,0.00019506,2]
[373235869,1752919862004,-1158.1,0.00019506,2]
[373235870,1752919862014,-370.90824582,0.00019506,2]
[373235871,1752919862023,-480.0,0.00019506,2]
[373235872,1752919862032,-502.23,0.00019506,2]
[373235873,1752919862042,-480.0,0.00019506,2]
[373235874,1752919862051,-251.07,0.00019506,2]
[373235875,1752919862061,-480.0,0.00019506,2]
[373235876,1752919862070,-411.29016147,0.00019506,2]
[373235877,1752919862079,-545.06,0.00019506,2]
[373235878,1752919862088,-2905.24,0.00019506,2]
[373235879,1752919862098,-480.0,0.00019506,2]
[373235880,1752919862106,-1130.47,0.00019506,2]
[373235881,1752919862116,-1538.89,0.00019506,2]
[373235882,1752919862125,-577.27,0.00019506,2]
[373235883,1752919862133,-480.0,0.00019506,2]
[373235884,1752919862143,-347.0,0.00019506,2]
[373235885,1752919862152,-543.9402723,0.0001951,2]
[373235886,1752919862161,-215.0738,0.00019551,2]
[373235887,1752919862170,-347.0,0.00019552,2]
[373235888,1752919862180,-177.54,0.00019553,2]
[373235889,1752919862190,-347.0,0.00019571,2]
[373235890,1752919862199,-347.0,0.0001958,2]
[373235891,1752919862209,-347.0,0.00019601,2]
[373235892,1752919862218,-480.0,0.00019616,2]
[373235893,1752919862228,-480.0,0.00019616,2]
[373235894,1752919862237,-480.0,0.00019616,2]
[373235895,1752919862249,-435.25,0.00019616,2]
[373235896,1752919862258,-480.0,0.00019616,2]
[373235897,1752919862268,-480.0,0.00019616,2]
[373235898,1752919862277,-458.28,0.00019616,2]
[373235899,1752919862286,-480.0,0.00019616,2]
[373235900,1752919862295,-480.0,0.00019616,2]
[373235901,1752919862305,-249.54,0.00019616,2]
[373235902,1752919862314,-165.5438221,0.00019616,2]
[373235903,1752919862323,-480.0,0.00019616,2]
[373235904,1752919862332,-480.0,0.00019616,2]
[373235905,1752919862341,-480.0,0.00019616,2]
[373235906,1752919862350,-387.91,0.00019616,2]
[373235907,1752919862360,-480.0,0.00019616,2]
[373235908,1752919862369,-475.44,0.00019616,2]
[373235909,1752919862378,-380.0,0.00019616,2]
[373235910,1752919862389,-480.0,0.00019616,2]
[373235911,1752919862398,-472.10823042,0.00019616,2]
[373235912,1752919862407,-466.71,0.00019616,2]
[373235913,1752919862417,-480.0,0.00019616,2]
[373235914,1752919862427,-480.0,0.00019616,2]
[373235915,1752919862436,-480.0,0.00019616,2]
[373235916,1752919862453,-281.25,0.00019616,2]
[373235917,1752919862463,-271.88,0.00019616,2]
[373235918,1752919862476,-480.0,0.00019616,2]
[373235919,1752919862486,-480.0,0.00019616,2]
[373235920,1752919862498,-518.65,0.00019616,2]
[373235921,1752919862508,-3225.72,0.00019616,2]
[373235922,1752919862519,-403.22,0.00019616,2]
[373235923,1752919862528,-929.65,0.00019616,2]
[373235924,1752919862538,-538.50177861,0.00019616,2]
[373235925,1752919862547,-546.84,0.00019616,2]
[373235926,1752919862557,-480.0,0.00019616,2]
[373235927,1752919862566,-3351.16,0.00019616,2]
[373235928,1752919862576,-3462.2,0.00019616,2]
[373235929,1752919862586,-480.0,0.00019616,2]
[373235930,1752919862595,-480.0,0.00019616,2]
[373235931,1752919862605,-3220.57,0.00019616,2]
[373235932,1752919862615,-322.7,0.00019616,2]
[373235933,1752919862626,-476.32,0.00019616,2]
[373235934,1752919862636,-877.62,0.00019616,2]
[373235935,1752919862647,-480.0,0.00019616,2]
[373235936,1752919862657,-286.88,0.00019616,2]
[373235937,1752919862666,-480.0,0.00019616,2]
[373235938,1752919862676,-480.0,0.00019616,2]
[373235939,1752919862687,-167.484129,0.00019616,2]
[373235940,1752919862697,-522.59,0.00019616,2]
[373235941,1752919862707,-611.8,0.00019616,2]
[373235942,1752919862716,-992.53,0.00019616,2]
[373235943,1752919862726,-685.01,0.00019616,2]
[373235944,1752919862736,-1637.825904,0.00019616,2]
[373235945,1752919862748,-588.9,0.00019616,2]
[373235946,1752919862764,-1571.285944,0.00019616,2]
[373235947,1752919862780,-480.0,0.00019616,2]
[373235948,1752919862790,-2233.87,0.00019616,2]
[373235949,1752919862800,-851.61,0.00019616,2]
[373235950,1752919862810,-480.0,0.00019616,2]
[373235951,1752919862820,-718.81,0.00019616,2]
[373235952,1752919862831,-480.0,0.00019616,2]
[373235953,1752919862843,-1358.36,0.00019616,2]
[373235954,1752919862853,-480.0,0.00019616,2]
[373235955,1752919862863,-1477.64,0.00019616,2]
[373235956,1752919862873,-544.99,0.00019616,2]
[373235957,1752919862885,-646.65,0.00019616,2]
[373235958,1752919862895,-480.0,0.00019616,2]
[373235959,1752919862906,-482.5,0.00019616,2]
[373235960,1752919862917,-480.0,0.00019616,2]
[373235961,1752919862928,-480.0,0.00019616,2]
[373235962,1752919862939,-1030.46,0.00019616,2]
[373235963,1752919862949,-480.0,0.00019616,2]
[373235964,1752919862959,-400.0,0.00019616,2]
[373235965,1752919862970,-610.02,0.00019616,2]
[373235966,1752919862981,-480.0,0.00019616,2]
[373235967,1752919862991,-1186.415593,0.00019616,2]
[373235968,1752919863002,-602.24,0.00019616,2]
[373235969,1752919863012,-480.0,0.00019616,2]
[373235970,1752919863022,-480.0,0.00019616,2]
[373235971,1752919863033,-197.94,0.00019616,2]
[373235972,1752919863044,-480.0,0.00019616,2]
[373235973,1752919863054,-480.0,0.00019616,2]
[373235974,1752919863065,-480.0,0.00019616,2]
[373235975,1752919863077,-1659.56,0.00019616,2]
[373235976,1752919863087,-658.15,0.00019616,2]
[373235977,1752919863099,-480.0,0.00019616,2]
[373235978,1752919863110,-534.8,0.00019616,2]
[373235979,1752919863120,-480.0,0.00019616,2]
[373235980,1752919863131,-480.0,0.00019616,2]
[373235981,1752919863143,-676.84,0.00019616,2]
[373235982,1752919863155,-480.0,0.00019616,2]
[373235983,1752919863166,-480.0,0.00019616,2]
[373235984,1752919863177,-480.0,0.00019616,2]
[373235985,1752919863188,-480.0,0.00019616,2]
[373235986,1752919863198,-151.0,0.00019616,2]
[373235987,1752919863210,-837.04,0.00019616,2]
[373235988,1752919863220,-1120.43,0.00019616,2]
[373235989,1752919863232,-1947.23,0.00019616,2]
[373235990,1752919863245,-447.76,0.00019616,2]
[373235991,1752919863256,-1479.44,0.00019616,2]
[373235992,1752919863267,-480.0,0.00019616,2]
[373235993,1752919863278,-480.0,0.00019616,2]
[373235994,1752919863288,-1104.98,0.00019616,2]
[373235995,1752919863299,-1240.19,0.00019616,2]
[373235996,1752919863310,-589.10078551,0.00019616,2]
[373235997,1752919863320,-1213.06,0.00019616,2]
[373235998,1752919863331,-1325.85,0.00019616,2]
[373235999,1752919863342,-480.0,0.00019616,2]
[373236000,1752919863353,-480.0,0.00019616,2]
[373236001,1752919863364,-480.0,0.00019616,2]
[373236002,1752919863374,-480.0,0.00019616,2]
[373236003,1752919863385,-495.17,0.00019616,2]
[373236004,1752919863395,-480.0,0.00019616,2]
[373236005,1752919863405,-602.67,0.00019616,2]
[373236006,1752919863416,-480.0,0.00019616,2]
[373236007,1752919863428,-1656.17,0.00019616,2]
[373236008,1752919863438,-480.0,0.00019616,2]
[373236009,1752919863450,-449.06486322,0.00019616,2]
[373236010,1752919863460,-480.0,0.00019616,2]
[373236011,1752919863471,-2682.58,0.00019616,2]
[373236012,1752919863481,-480.0,0.00019616,2]
[373236013,1752919863494,-2820.87,0.00019616,2]
[373236014,1752919863504,-955.39,0.00019616,2]
[373236015,1752919863516,-479.86,0.00019616,2]
[373236016,1752919863527,-187.05,0.00019616,2]
[373236017,1752919863538,-480.0,0.00019616,2]
[373236018,1752919863548,-824.58,0.00019616,2]
[373236019,1752919863558,-480.0,0.00019616,2]
[373236020,1752919863569,-480.0,0.00019616,2]
[373236021,1752919863579,-480.0,0.00019616,2]
[373236022,1752919863589,-480.0,0.00019616,2]
[373236023,1752919863599,-1507.25,0.00019616,2]
[373236024,1752919863610,-1820.5,0.00019616,2]
[373236025,1752919863621,-1304.87,0.00019616,2]
[373236026,1752919863631,-1009.35,0.00019616,2]
[373236027,1752919863641,-480.0,0.00019616,2]
[373236028,1752919863652,-1085.77,0.00019616,2]
[373236029,1752919863662,-480.0,0.00019616,2]
[373236030,1752919863672,-677.53,0.00019616,2]
[373236031,1752919863682,-621.85,0.00019616,2]
[373236032,1752919863693,-506.06,0.00019616,2]
[373236033,1752919863703,-480.0,0.00019616,2]
[373236034,1752919863714,-578.45,0.00019616,2]